bitfinex-derivatives/quotes_SOLF0:USTF0_20250425
["timestamp","ask_amount","ask_price","bid_price","bid_amount"]
[1745587635158,25.62,153.42,153.36,17.13498981]
[1745587635453,32.1355,153.42,153.39,6.5163]
[1745587635654,25.62,153.42,153.36,17.13498981]
[1745587636551,32.1355,153.42,153.39,6.5164]
[1745587636856,32.1355,153.42,153.36,17.13498981]
[1745587637053,25.62,153.42,153.36,17.13498981]
[1745587637250,25.62,153.42,153.38,17.13498981]
[1745587637750,6.5148,153.44,153.41,6.5157]
[1745587638356,6.5148,153.43,153.41,6.5157]
[1745587638959,25.9946,153.45,153.35,5.8097]
[1745587638960,25.9946,153.45,153.36,17.13498981]
[1745587639259,17.13498981,153.44,153.38,6.5166]
[1745587639458,17.13498981,153.42,153.35,3.9093]
[1745587639648,17.13498981,153.42,153.34,42.75498981]
[1745587639851,25.62,153.41,153.38,6.5169]
[1745587640350,25.62,153.41,153.36,6.5175]
[1745587640557,25.62,153.41,153.34,42.75498981]
[1745587640558,17.13498981,153.38,153.29,3.8433]
[1745587640956,25.62,153.37,153.33,6.5191]
[1745587641158,25.62,153.37,153.3,17.13498981]
[1745587641457,25.62,153.37,153.34,6.5184]
[1745587641662,25.62,153.37,153.32,17.13498981]
[1745587641962,29.4825,153.4,153.32,17.13498981]
[1745587642162,6.5168,153.39,153.32,17.13498981]
[1745587642364,29.4825,153.4,153.32,17.13498981]
[1745587642862,6.5174,153.38,153.34,6.5183]
[1745587643065,6.5174,153.38,153.32,17.13498981]
[1745587643357,29.4825,153.4,153.32,17.13498981]
[1745587643563,25.62,153.4,153.34,17.13498981]
[1745587644871,32.1363,153.4,153.34,17.13498981]
[1745587645272,25.62,153.4,153.34,17.13498981]
[1745587645565,25.62,153.4,153.38,6.5167]
[1745587645966,25.62,153.4,153.38,6.5168]
[1745587646267,25.62,153.4,153.34,17.13498981]
[1745587646570,6.5159,153.41,153.38,6.5167]
[1745587649573,6.5161,153.4,153.38,6.5167]
[1745587650271,27.6233,153.43,153.36,17.13498981]
[1745587650477,25.58,153.43,153.38,17.13498981]
[1745587650669,6.5156,153.42,153.39,6.5164]
[1745587651678,32.095,153.43,153.4,6.516]
[1745587652078,6.5156,153.42,153.39,6.5164]
[1745587652273,25.58,153.43,153.36,17.13498981]
[1745587652679,6.5162,153.4,153.36,17.13498981]
[1745587652876,25.58,153.43,153.36,17.13498981]
[1745587653078,6.5158,153.41,153.38,6.5167]
[1745587654379,6.5163,153.4,153.37,6.5172]
[1745587654579,17.13498981,153.42,153.35,25.58]
[1745587654780,17.13498981,153.42,153.34,17.13498981]
[1745587654974,6.5164,153.4,153.37,6.5173]
[1745587655576,29.5303,153.43,153.34,17.13498981]
[1745587656281,6.516,153.41,153.38,6.5167]
[1745587658181,6.5155,153.42,153.39,6.5164]
[1745587658684,25.58,153.43,153.36,17.13498981]
[1745587658982,6.5153,153.42,153.36,17.13498981]
[1745587659483,6.5158,153.41,153.36,17.13498981]
[1745587660783,6.5158,153.41,153.39,6.5163]
[1745587662274,6.5154,153.42,153.39,6.5163]
[1745587662476,6.5154,153.42,153.4,6.5161]
[1745587662783,6.5157,153.41,153.36,17.13498981]
[1745587663482,6.5155,153.42,153.36,17.13498981]
[1745587663683,25.58,153.43,153.36,17.13498981]
[1745587663983,25.58,153.43,153.34,17.13498981]
[1745587664583,25.58,153.43,153.37,6.5171]
[1745587664584,6.5163,153.4,153.37,6.5171]
[1745587665584,6.5163,153.4,153.38,6.5168]
[1745587666786,17.13498981,153.42,153.34,17.13498981]
[1745587667187,6.5165,153.4,153.37,6.5173]
[1745587667488,17.13498981,153.42,153.34,17.13498981]
[1745587667787,6.5167,153.39,153.34,17.13498981]
[1745587668386,6.5167,153.39,153.37,6.5173]
[1745587668784,17.13498981,153.42,153.34,17.13498981]
[1745587668988,17.13498981,153.4,153.32,42.71498981]
[1745587669287,25.58,153.39,153.3,19.02438981]
[1745587669486,29.5015,153.39,153.33,6.5189]
[1745587669986,6.5182,153.36,153.33,6.5189]
[1745587670189,6.5182,153.36,153.34,6.5186]
[1745587671187,6.5176,153.37,153.35,6.5181]
[1745587671388,25.58,153.39,153.32,17.13498981]
[1745587672196,6.5173,153.38,153.35,6.518]
[1745587672388,25.58,153.39,153.32,17.13498981]
[1745587672584,25.58,153.39,153.38,6.517]
[1745587673090,27.5851,153.42,153.34,17.13498981]
[1745587673289,6.5159,153.41,153.39,6.5163]
[1745587673489,25.54,153.42,153.36,17.13498981]
[1745587674290,25.54,153.42,153.41,6.5157]
[1745587675985,1.9358,153.46,153.41,6.5157]
[1745587676285,25.54,153.45,153.41,6.5157]
[1745587676491,6.5145,153.44,153.41,6.5157]
[1745587677587,6.5149,153.43,153.41,6.5157]
[1745587677888,25.54,153.45,153.42,6.5153]
[1745587678789,25.54,153.45,153.4,17.13498981]
[1745587679088,27.5851,153.48,153.42,17.13498981]
[1745587679283,6.5133,153.47,153.42,17.13498981]
[1745587679484,25.54,153.48,153.45,6.5136]
[1745587679690,25.54,153.48,153.42,17.13498981]
[1745587679993,25.54,153.48,153.46,6.5133]
[1745587680194,0.33916,153.49,153.42,17.13498981]
[1745587680395,17.13498981,153.46,153.36,19.12938981]
[1745587680595,25.54,153.45,153.36,19.12938981]
[1745587680897,27.5808,153.48,153.4,17.13498981]
[1745587681194,27.5808,153.48,153.42,6.5151]
[1745587681792,27.5808,153.48,153.41,6.5155]
[1745587682093,44.71578981,153.48,153.41,6.5155]
[1745587682692,25.54,153.48,153.4,17.13498981]
[1745587683693,17.13498981,153.47,153.39,25.54]
[1745587683895,17.13498981,153.46,153.39,6.5163]
[1745587684292,6.5156,153.42,153.39,6.5163]
[1745587684492,25.54,153.44,153.4,6.5161]
[1745587684992,25.54,153.44,153.36,44.66938981]
[1745587685292,42.67498981,153.44,153.36,27.5344]
[1745587685592,42.67498981,153.44,153.35,19.12438981]
[1745587685792,6.5172,153.38,153.33,42.67498981]
[1745587686593,6.5172,153.38,153.35,6.5182]
[1745587686794,6.5172,153.38,153.33,42.67498981]
[1745587687097,6.5167,153.39,153.36,6.5175]
[1745587687589,6.5172,153.38,153.33,25.54]
[1745587687792,6.5172,153.38,153.35,6.518]
[1745587688899,6.5172,153.38,153.36,6.5177]
[1745587689299,6.5172,153.38,153.33,25.54]
[1745587689601,6.5172,153.38,153.35,6.5179]
[1745587690899,17.13498981,153.36,153.3,1.9377]
[1745587691299,6.5199,153.32,153.29,6.5206]
[1745587691695,6.5199,153.32,153.27,29.3889]
[1745587691899,6.5192,153.33,153.3,6.5203]
[1745587693803,23.65378981,153.34,153.31,6.5199]
[1745587696402,23.65378981,153.34,153.31,6.5199]
[1745587697599,23.65378981,153.34,153.32,6.5195]
[1745587698405,25.54,153.35,153.29,17.13498981]
[1745587699008,25.54,153.35,153.33,6.519]
[1745587699198,25.54,153.35,153.29,17.13498981]
[1745587700106,32.0584,153.35,153.29,17.13498981]
[1745587700602,32.0584,153.35,153.27,46.52388981]
[1745587701405,32.0584,153.35,153.32,6.5192]
[1745587701907,32.0584,153.35,153.33,6.5191]
[1745587702203,25.54,153.35,153.27,46.52388981]
[1745587702405,25.54,153.35,153.33,6.5188]
[1745587703507,25.54,153.35,153.27,46.52388981]
[1745587704113,32.0584,153.35,153.32,6.5194]
[1745587705809,32.0584,153.35,153.33,6.519]
[1745587706111,32.0584,153.35,153.27,46.52388981]
[1745587706310,32.0584,153.35,153.32,6.5193]
[1745587706611,32.0584,153.35,153.27,46.52388981]
[1745587706911,25.54,153.35,153.33,6.5188]
[1745587707411,25.54,153.35,153.27,46.52388981]
[1745587707610,25.54,153.35,153.32,6.5192]
[1745587708013,25.54,153.35,153.27,46.52388981]
[1745587708512,32.0585,153.35,153.27,46.52388981]
[1745587708915,32.0585,153.35,153.32,6.5193]
[1745587709213,6.5188,153.34,153.32,6.5193]
[1745587709414,17.48543461,153.34,153.32,6.5193]
[1745587709613,10.96663461,153.34,153.32,6.5193]
[1745587709814,10.96663461,153.34,153.3,10.96663461]
[1745587710313,17.48533461,153.34,153.3,10.96663461]
[1745587710915,17.48533461,153.34,153.32,6.5193]
[1745587711517,10.96663461,153.34,153.32,6.5193]
[1745587712213,10.96663461,153.33,153.29,10.96663461]
[1745587712419,10.96663461,153.32,153.27,40.35553461]
[1745587712717,17.48623461,153.32,153.27,40.35553461]
[1745587713317,17.48623461,153.32,153.27,38.46683461]
[1745587713812,17.48623461,153.32,153.3,6.5201]
[1745587714219,10.96663461,153.32,153.28,10.96663461]
[1745587714421,10.96663461,153.33,153.31,6.5196]
[1745587715118,17.48593461,153.33,153.31,6.5196]
[1745587715319,10.96663461,153.33,153.3,6.5202]
[1745587715720,17.48583461,153.33,153.3,6.5202]
[1745587716622,17.48583461,153.33,153.31,6.5199]
[1745587717223,6.5195,153.32,153.3,6.5203]
[1745587717420,10.96663461,153.33,153.3,6.5203]
[1745587717818,17.48613461,153.33,153.3,6.5203]
[1745587718023,10.96663461,153.33,153.27,25.54]
[1745587718228,10.96663461,153.33,153.28,10.96663461]
[1745587718525,6.5193,153.33,153.29,10.96663461]
[1745587718719,6.5193,153.33,153.3,6.5203]
[1745587719421,6.5193,153.33,153.31,6.5199]
[1745587720319,10.96663461,153.34,153.31,10.96663461]
[1745587720522,25.54,153.35,153.32,10.96663461]
[1745587720823,25.54,153.35,153.34,6.5187]
[1745587721022,10.96663461,153.36,153.32,10.96663461]
[1745587721338,6.5185,153.35,153.32,17.48573461]
[1745587721540,6.5185,153.35,153.32,10.96663461]
[1745587722033,6.5185,153.35,153.32,6.5192]
[1745587722338,10.96663461,153.36,153.32,6.5192]
[1745587723037,6.5183,153.35,153.32,6.5192]
[1745587724329,10.96663461,153.35,153.32,6.5192]
[1745587724534,10.96663461,153.34,153.29,10.96663461]
[1745587724836,6.5193,153.33,153.29,10.96663461]
[1745587725134,36.48663461,153.34,153.3,6.52]
[1745587725335,6.5192,153.33,153.3,6.52]
[1745587726136,6.5192,153.33,153.31,6.5198]
[1745587726337,6.5196,153.32,153.29,10.96663461]
[1745587726637,6.5196,153.32,153.3,6.5202]
[1745587726836,17.48593461,153.33,153.3,6.5202]
[1745587727138,17.48593461,153.33,153.31,6.5199]
[1745587727635,17.48593461,153.33,153.29,10.96663461]
[1745587728838,17.48593461,153.33,153.3,6.52]
[1745587729040,17.48593461,153.33,153.29,10.96663461]
[1745587729339,25.52,153.34,153.31,10.96663461]
[1745587729538,25.52,153.34,153.32,6.5192]
[1745587730241,25.52,153.34,153.29,10.96663461]
[1745587731340,32.0389,153.34,153.32,6.5193]
[1745587731533,25.52,153.34,153.29,10.96663461]
[1745587731841,10.96663461,153.33,153.3,6.5202]
[1745587732041,10.96663461,153.31,153.26,10.96663461]
[1745587732439,17.48743461,153.29,153.27,6.5214]
[1745587733540,6.5212,153.28,153.24,10.96663461]
[1745587733744,17.48783461,153.28,153.23,10.96663461]
[1745587733943,10.96663461,153.28,153.23,10.96663461]
[1745587734247,10.96663461,153.25,153.19,4.0003]
[1745587734445,10.96663461,153.23,153.19,10.96663461]
[1745587735341,6.5231,153.24,153.2,6.5243]
[1745587735542,6.5231,153.24,153.18,25.48]
[1745587735738,42.64050495,153.26,153.18,25.48]
[1745587735945,6.524,153.22,153.19,6.5248]
[1745587736144,17.16050495,153.24,153.16,17.16050495]
[1745587736345,17.16050495,153.24,153.15,31.4495]
[1745587736546,6.5241,153.22,153.19,6.525]
[1745587737342,6.5245,153.21,153.18,6.5254]
[1745587737945,6.5245,153.21,153.19,6.525]
[1745587738445,25.48,153.22,153.19,6.525]
[1745587738645,25.48,153.22,153.18,6.5254]
[1745587738944,25.48,153.22,153.15,29.4484]
[1745587739141,42.64050495,153.22,153.15,25.48]
[1745587739543,42.64050495,153.22,153.14,17.16050495]
[1745587739753,6.5247,153.2,153.17,6.5257]
[1745587739938,42.64050495,153.22,153.14,17.16050495]
[1745587740848,6.5243,153.21,153.18,6.5252]
[1745587741448,6.5243,153.21,153.19,6.525]
[1745587741644,25.48,153.22,153.16,17.16050495]
[1745587742148,32.0039,153.22,153.19,6.5247]
[1745587742552,25.48,153.22,153.16,17.16050495]
[1745587743451,25.48,153.22,153.21,6.5242]
[1745587744653,6.5232,153.24,153.21,6.5242]
[1745587744852,25.5,153.26,153.18,17.16050495]
[1745587745152,25.5,153.26,153.2,17.16050495]
[1745587745352,32.0221,153.26,153.2,17.16050495]
[1745587745650,32.0221,153.26,153.18,17.16050495]
[1745587745950,6.5225,153.25,153.23,6.5231]
[1745587746150,6.5225,153.25,153.18,17.16050495]
[1745587746349,6.5225,153.25,153.17,5.8603]
[1745587746554,6.5229,153.24,153.17,23.02080495]
[1745587747058,6.5227,153.25,153.22,6.5236]
[1745587747252,6.5227,153.25,153.17,23.02080495]
[1745587747464,25.5,153.26,153.19,17.16050495]
[1745587748156,6.5227,153.25,153.19,17.16050495]
[1745587748458,25.5,153.26,153.19,17.16050495]
[1745587748757,32.0223,153.26,153.23,6.5231]
[1745587749055,25.5,153.29,153.21,17.16050495]
[1745587749250,25.5,153.29,153.26,6.5218]
[1745587749755,32.0211,153.29,153.26,6.5218]
[1745587750058,25.5,153.29,153.23,17.16050495]
[1745587750257,32.0212,153.29,153.23,17.16050495]
[1745587750757,32.0212,153.29,153.26,6.5219]
[1745587750953,25.5,153.29,153.21,17.16050495]
[1745587751157,25.5,153.29,153.24,6.5228]
[1745587751461,6.5219,153.27,153.24,6.5228]
[1745587752562,6.5221,153.26,153.24,6.5228]
[1745587753259,6.5218,153.27,153.24,6.5228]
[1745587753659,6.5221,153.26,153.24,6.5228]
[1745587753960,6.5221,153.26,153.23,6.5232]
[1745587754160,6.5223,153.26,153.23,6.5232]
[1745587754759,6.5223,153.26,153.24,6.5229]
[1745587755060,17.16050495,153.28,153.17,5.8603]
[1745587755361,10.9799753,153.25,153.21,10.9799753]
[1745587755561,17.5027753,153.25,153.22,6.5236]
[1745587756261,6.523,153.24,153.22,6.5236]
[1745587757556,6.5234,153.23,153.21,6.524]
[1745587757763,10.9799753,153.23,153.18,10.9799753]
[1745587757958,10.9799753,153.22,153.17,42.3402753]
[1745587758160,6.5235,153.23,153.2,6.5246]
[1745587758359,10.9799753,153.22,153.2,6.5246]
[1745587758759,17.5038753,153.22,153.17,36.4799753]
[1745587759165,10.9799753,153.19,153.13,5.9102]
[1745587759464,10.9799753,153.18,153.13,16.8901753]
[1745587759764,17.5054753,153.18,153.15,6.5264]
[1745587759966,10.9799753,153.18,153.13,16.8901753]
[1745587760265,10.9799753,153.16,153.12,10.9799753]
[1745587760562,10.9799753,153.17,153.12,10.9799753]
[1745587760763,10.9799753,153.17,153.14,6.5269]
[1745587760764,17.5060753,153.17,153.14,6.5269]
[1745587760965,10.9799753,153.17,153.12,10.9799753]
[1745587761261,10.9799753,153.18,153.11,25.5]
[1745587761462,10.9799753,153.19,153.14,10.9799753]
[1745587761662,36.4799753,153.2,153.16,10.9799753]
[1745587762065,43.0045753,153.2,153.17,6.5258]
[1745587762266,10.9799753,153.18,153.11,25.5]
[1745587762562,17.5065753,153.16,153.09,3.8977]
[1745587762862,10.9799753,153.15,153.1,10.9799753]
[1745587763060,17.5074753,153.14,153.11,6.5281]
[1745587763263,10.9799753,153.13,153.08,38.3704753]
[1745587763464,25.48,153.16,153.08,38.3704753]
[1745587763666,10.9799753,153.14,153.08,38.3704753]
[1745587763964,10.9799753,153.14,153.11,6.5282]
[1745587764173,25.48,153.16,153.09,10.9799753]
[1745587764362,10.9799753,153.15,153.09,10.9799753]
[1745587764668,10.9799753,153.15,153.1,10.9799753]
[1745587764862,10.9799753,153.13,153.08,27.3905]
[1745587765068,10.9799753,153.12,153.08,1.8905]
[1745587765367,6.5276,153.14,153.1,6.5288]
[1745587765670,17.18360237,153.15,153.1,6.5288]
[1745587765867,17.18360237,153.15,153.1,6.5286]
[1745587766168,17.18360237,153.15,153.08,1.8905]
[1745587766367,17.18360237,153.15,153.08,6.5295]
[1745587766567,17.18360237,153.13,153.08,6.5295]
[1745587767268,25.48,153.12,153.05,25.48]
[1745587767467,17.18360237,153.11,153.04,1.9166]
[1745587767967,25.48,153.12,153.03,4.0228]
[1745587768269,17.18360237,153.06,152.98,27.3966]
[1745587768470,23.71430237,153.06,153.01,6.5324]
[1745587769170,17.18360237,153.06,152.98,1.9166]
[1745587769373,17.18360237,153.04,152.95,25.48]
[1745587769673,25.48,153.03,152.96,17.18360237]
[1745587770071,25.48,153.03,152.98,17.18360237]
[1745587770370,25.48,153.06,152.98,17.18360237]
[1745587770672,25.48,153.06,152.99,3.9749]
[1745587770863,25.48,153.06,152.99,21.15850237]
[1745587771065,42.66360237,153.06,153.01,6.5327]
[1745587771265,17.18360237,153.04,152.96,17.18360237]
[1745587771472,42.66360237,153.06,152.98,17.18360237]
[1745587771772,25.48,153.06,152.98,17.18360237]
[1745587772168,17.18360237,153.08,153.0,17.18360237]
[1745587772470,17.18360237,153.08,153.05,6.5309]
[1745587772672,25.48,153.09,153.0,42.66360237]
[1745587772975,25.48,153.09,153.05,6.5307]
[1745587773173,25.48,153.09,153.02,17.18360237]
[1745587773674,25.5,153.12,153.04,17.18360237]
[1745587773873,25.5,153.12,153.06,17.18360237]
[1745587774376,31.3961,153.15,153.06,17.18360237]
[1745587774577,6.5275,153.14,153.09,6.529]
[1745587774778,6.5275,153.14,153.06,17.18360237]
[1745587775175,6.5277,153.13,153.09,6.529]
[1745587775877,31.3961,153.15,153.05,1.9237]
[1745587776072,17.18360237,153.12,153.05,1.9237]
[1745587776272,17.18360237,153.1,153.01,46.63660237]
[1745587777076,6.5294,153.09,153.05,6.5307]
[1745587778076,17.18360237,153.1,153.04,6.5313]
[1745587778077,6.5298,153.08,153.04,6.5313]
[1745587778674,25.5,153.07,152.89,13.0754]
[1745587778879,25.5,153.07,152.98,17.18360237]
[1745587779179,6.5313,153.05,153.01,6.5324]
[1745587779380,25.5,153.07,153.0,17.18360237]
[1745587779674,6.5313,153.05,153.01,6.5326]
[1745587779877,17.18360237,153.06,152.96,21.04630237]
[1745587780374,6.5326,153.02,152.98,6.5338]
[1745587780579,6.5326,153.02,152.96,21.04630237]
[1745587780878,6.5326,153.02,152.99,6.5335]
[1745587781181,6.5328,153.01,152.96,21.04630237]
[1745587781480,6.5328,153.01,152.96,17.18360237]
[1745587781678,6.5328,153.01,152.98,6.5339]
[1745587782279,6.5328,153.01,152.97,6.5343]
[1745587782475,25.5,153.03,152.94,17.18360237]
[1745587782679,42.68360237,153.06,152.96,17.18360237]
[1745587782880,42.68360237,153.06,152.98,17.18360237]
[1745587783081,6.5315,153.04,152.98,17.18360237]
[1745587783278,42.68360237,153.06,153.01,6.5323]
[1745587783480,42.68360237,153.06,152.98,17.18360237]
[1745587783876,17.18360237,153.0,152.84,38.5797]
[1745587784084,17.18360237,152.98,152.89,17.18360237]
[1745587784283,25.5,152.98,152.89,17.18360237]
[1745587784582,25.5,152.98,152.89,42.68360237]
[1745587785185,6.5356,152.95,152.89,42.68360237]
[1745587785486,25.5,152.98,152.89,42.68360237]
[1745587785787,6.5353,152.95,152.92,6.5362]
[1745587785982,25.5,152.98,152.89,42.68360237]
[1745587786288,6.5356,152.95,152.91,6.537]
[1745587786588,17.18360237,152.97,152.88,42.68360237]
[1745587786779,25.5,152.98,152.94,6.5353]
[1745587787183,25.5,152.98,152.9,17.18360237]
[1745587787387,6.535,152.96,152.93,6.536]
[1745587787685,25.5,152.98,152.93,6.536]
[1745587787982,17.18360237,152.95,152.88,25.5]
[1745587788179,17.18360237,152.93,152.85,44.70180237]
[1745587788678,25.5,152.94,152.85,44.70180237]
[1745587788883,6.537,152.92,152.85,44.70180237]
[1745587789079,25.5,152.94,152.85,19.20180237]
[1745587789685,6.5374,152.91,152.88,6.538]
[1745587789979,17.18360237,152.93,152.84,25.5]
[1745587790178,17.18360237,152.91,152.82,17.18360237]
[1745587790387,17.18360237,152.93,152.84,17.18360237]
[1745587790683,6.537,152.92,152.88,6.5379]
[1745587790887,17.18360237,152.93,152.84,17.18360237]
[1745587791189,17.18360237,152.91,152.86,6.5388]
[1745587791684,17.18360237,152.91,152.82,17.18360237]
[1745587791878,17.18360237,152.91,152.87,6.5383]
[1745587792390,2.0253,152.92,152.84,17.18360237]
[1745587792889,6.5381,152.89,152.82,42.70360237]
[1745587793085,2.0253,152.92,152.86,17.18360237]
[1745587793291,26.1,152.93,152.86,17.18360237]
[1745587793690,26.1,152.93,152.84,17.18360237]
[1745587794391,43.28360237,152.93,152.84,17.18360237]
[1745587794590,1.9435,152.92,152.84,17.18360237]
[1745587794890,17.18360237,152.91,152.82,43.28360237]
[1745587795189,6.5378,152.9,152.87,6.5386]
[1745587795591,1.9435,152.92,152.83,27.57844473]
[1745587795789,8.4803,152.92,152.89,6.5378]
[1745587795990,1.9435,152.92,152.83,27.57844473]
[1745587796192,6.5374,152.91,152.87,6.5387]
[1745587796486,29.52194473,152.92,152.8,27.57844473]
[1745587796786,6.5376,152.9,152.87,6.5385]
[1745587796991,1.9435,152.92,152.8,27.57844473]
[1745587797191,1.9435,152.92,152.83,27.57844473]
[1745587797490,1.9435,152.92,152.83,53.67844473]
[1745587797690,31.43554473,152.95,152.83,53.67844473]
[1745587797889,32.6364,152.93,152.9,6.5371]
[1745587798486,26.1,152.93,152.9,6.5371]
[1745587799090,32.6362,152.93,152.9,6.5371]
[1745587799287,31.43554473,152.95,152.89,6.5378]
[1745587799492,31.43554473,152.95,152.83,53.67844473]
[1745587800393,27.57844473,152.98,152.86,27.57844473]
[1745587800692,2.0446,152.99,152.89,27.57844473]
[1745587800995,2.0446,152.99,152.88,27.57844473]
[1745587801194,2.0446,152.99,152.88,31.48264473]
[1745587801395,2.0446,152.99,152.88,3.9042]
[1745587801595,2.0446,152.99,152.89,27.57844473]
[1745587801795,3.8881,153.0,152.92,27.57844473]
[1745587801997,53.67844473,153.04,152.92,53.67844473]
[1745587802191,5.8471,153.06,152.95,27.57844473]
[1745587802393,5.8471,153.06,152.96,26.1]
[1745587802698,5.8471,153.06,152.98,27.57844473]
[1745587802897,0.5472,153.09,152.98,27.57844473]
[1745587803393,0.5472,153.09,152.96,31.9896]
[1745587803593,28.12564473,153.09,152.96,59.56804473]
[1745587803789,27.57844473,153.06,152.96,33.46804473]
[1745587803994,26.1,153.05,152.99,6.5335]
[1745587804294,26.1,153.05,152.96,5.8896]
[1745587804896,6.5315,153.04,152.96,5.8896]
[1745587805096,26.1,153.05,152.96,5.8896]
[1745587805297,6.5316,153.03,152.96,5.8896]
[1745587805601,6.5316,153.03,152.99,6.5327]
[1745587806395,6.5326,153.0,152.97,6.5337]
[1745587806601,27.57844473,153.03,152.95,26.1]
[1745587806799,27.57844473,153.03,152.99,6.5327]
[1745587806800,6.5315,153.03,152.99,6.5327]
[1745587806990,1.8652,153.04,152.96,26.1]
[1745587807196,26.1,153.08,152.96,26.1]
[1745587807399,26.1,153.08,152.98,27.57844473]
[1745587807696,26.1,153.08,152.99,3.9415]
[1745587808098,32.6291,153.08,152.99,3.9415]
[1745587808397,26.1,153.08,153.01,27.57844473]
[1745587808597,6.5294,153.08,153.04,6.5305]
[1745587808797,0.5472,153.09,153.04,6.5305]
[1745587808998,6.5292,153.08,153.05,6.5303]
[1745587809199,0.5472,153.09,153.01,27.57844473]
[1745587809597,0.5472,153.09,153.0,28.1468]
[1745587809899,28.12564473,153.09,153.0,26.1]
[1745587810098,6.531,153.04,153.01,6.5318]
[1745587810293,27.57844473,153.06,152.93,2.0468]
[1745587810493,31.45164473,153.03,152.93,2.0468]
[1745587810699,27.57844473,153.0,152.89,28.066]
[1745587811100,6.5328,153.0,152.91,27.57844473]
[1745587811296,3.8732,153.03,152.94,27.57844473]
[1745587811596,10.4045,153.03,153.0,6.5322]
[1745587811902,28.0449,153.07,152.99,26.08]
[1745587812804,26.08,153.07,152.99,26.08]
[1745587813204,6.53,153.06,152.99,26.08]
[1745587813704,26.08,153.09,153.04,6.5305]
[1745587814505,6.5293,153.08,153.0,27.57844473]
[1745587815003,26.08,153.09,153.0,27.57844473]
[1745587815201,6.5293,153.08,153.03,6.5309]
[1745587815499,3.7374,153.11,153.0,27.57844473]
[1745587815705,6.5288,153.09,153.0,27.57844473]
[1745587815902,3.7374,153.11,153.0,27.57844473]
[1745587816205,6.5291,153.08,153.0,27.57844473]
[1745587816704,6.5288,153.09,153.05,6.5301]
[1745587817004,26.08,153.12,153.05,26.08]
[1745587817198,2.48158,153.14,153.05,26.08]
[1745587817404,0.51668,153.14,153.06,27.57844473]
[1745587817904,6.5277,153.12,153.08,6.5288]
[1745587818105,0.51668,153.14,153.06,27.57844473]
[1745587818301,6.5277,153.12,153.08,6.529]
[1745587818496,0.51668,153.14,153.06,27.57844473]
[1745587818806,6.5272,153.13,153.09,6.5284]
[1745587819005,0.51668,153.14,153.06,27.57844473]
[1745587819305,6.5275,153.12,153.06,27.57844473]
[1745587820105,6.5271,153.13,153.09,6.5284]
[1745587820302,0.51668,153.14,153.06,27.57844473]
[1745587820503,0.51668,153.14,153.05,26.08]
[1745587820504,0.51668,153.14,153.09,27.57844473]
[1745587820705,0.51668,153.14,153.13,6.527]
[1745587822607,1.8669,153.21,153.12,27.57844473]
[1745587822801,6.5241,153.2,153.12,27.57844473]
[1745587823002,1.9634,153.24,153.2,6.524]
[1745587823208,1.9819,153.26,153.2,6.524]
[1745587823606,1.9819,153.26,153.19,6.5244]
[1745587823806,1.9819,153.26,153.17,26.1]
[1745587824106,27.57844473,153.25,153.14,26.1]
[1745587824513,28.0819,153.26,153.14,53.67844473]
[1745587825010,6.5242,153.2,153.14,53.67844473]
[1745587825207,6.5242,153.2,153.14,26.1]
[1745587825404,28.0819,153.26,153.14,26.1]
[1745587825810,28.0819,153.26,153.16,6.5254]
[1745587826003,6.5215,153.26,153.19,27.57844473]
[1745587826206,57.59934473,153.31,153.2,26.1]
[1745587826608,57.59934473,153.31,153.2,32.6238]
[1745587826807,27.57844473,153.28,153.16,26.1]
[1745587827111,26.1,153.27,153.16,32.6253]
[1745587827311,27.57844473,153.25,153.16,26.1]
[1745587827612,5.8379,153.24,153.16,26.1]
[1745587827811,26.1,153.23,153.16,26.1]
[1745587828009,26.1,153.23,153.12,27.57844473]
[1745587828313,27.57844473,153.22,153.13,26.1]